[Event "Titled Tuesday Blitz January 10 Early 2023"]
[White "Torres Dominguez, David"]
[Black "Parpiev, Isaak"]
[WhiteFideId "2220857"]
[BlackFideId "34281576"]
[WhiteElo "1994"]
[BlackElo "2167"]
[Result "1-0"]
[Round "03"]
[TimeControl "180+2"]
[Date "2023.01.10"]
[WhiteClock "0:00:06"]
[BlackClock "0:00:01"]

1. e4 {[%clk 0:02:56]}  c5 {[%clk 0:02:55]} 2. Nc3 {[%clk 0:02:55]}  Nc6 {[%clk 0:02:54]} 3. f4 {[%clk 0:02:55]}  g6 {[%clk 0:02:49]} 4. Nf3 {[%clk 0:02:56]}  Bg7 {[%clk 0:02:49]} 5. a4 {[%clk 0:02:56]}  d6 {[%clk 0:02:41]} 6. Bb5 {[%clk 0:02:53]}  Bg4 {[%clk 0:02:30]} 7. Bxc6+ {[%clk 0:02:50]}  bxc6 {[%clk 0:02:31]} 8. O-O {[%clk 0:02:49]}  e6 {[%clk 0:02:30]} 9. d3 {[%clk 0:02:45]}  Ne7 {[%clk 0:02:29]} 10. Qe1 {[%clk 0:02:43]}  Bxf3 {[%clk 0:02:26]} 11. Rxf3 {[%clk 0:02:42]}  Rb8 {[%clk 0:02:27]} 12. b3 {[%clk 0:02:27]}  Qb6 {[%clk 0:01:56]} 13. Kh1 {[%clk 0:02:23]}  Kd7 {[%clk 0:01:35]} 14. Bd2 {[%clk 0:02:23]}  Qc7 {[%clk 0:01:34]} 15. Rd1 {[%clk 0:02:13]}  h5 {[%clk 0:01:31]} 16. Ne2 {[%clk 0:02:08]}  Rhc8 {[%clk 0:01:17]} 17. Ba5 {[%clk 0:01:59]}  Qb7 {[%clk 0:01:15]} 18. Bc3 {[%clk 0:01:57]}  Bxc3 {[%clk 0:01:14]} 19. Qxc3 {[%clk 0:01:57]}  Qb4 {[%clk 0:01:14]} 20. Qf6 {[%clk 0:01:50]}  Rf8 {[%clk 0:01:14]} 21. f5 {[%clk 0:01:39]}  gxf5 {[%clk 0:01:02]} 22. exf5 {[%clk 0:01:32]}  Nxf5 {[%clk 0:00:59]} 23. d4 {[%clk 0:01:32]}  cxd4 {[%clk 0:00:53]} 24. Nxd4 {[%clk 0:01:27]}  Nxd4 {[%clk 0:00:41]} 25. Rxd4 {[%clk 0:01:26]}  Qe1+ {[%clk 0:00:40]} 26. Rf1 {[%clk 0:01:26]}  Qe2 {[%clk 0:00:33]} 27. Rdd1 {[%clk 0:01:20]}  Qxc2 {[%clk 0:00:20]} 28. Qd4 {[%clk 0:01:15]}  d5 {[%clk 0:00:12]} 29. Qxa7+ {[%clk 0:01:13]}  Kd6 {[%clk 0:00:13]} 30. Rc1 {[%clk 0:01:09]}  Qxb3 {[%clk 0:00:02]} 31. Qc5+ {[%clk 0:01:09]}  Kd7 {[%clk 0:00:02]} 32. Qxc6+ {[%clk 0:01:09]}  Ke7 {[%clk 0:00:02]} 33. Qc7+ {[%clk 0:01:05]}  Ke8 {[%clk 0:00:03]} 34. Rf3 {[%clk 0:00:45]}  Qb7 {[%clk 0:00:02]} 35. Qe5 {[%clk 0:00:40]}  Rd8 {[%clk 0:00:03]} 36. Rfc3 {[%clk 0:00:35]}  Qd7 {[%clk 0:00:01]} 37. a5 {[%clk 0:00:33]}  Qa4 {[%clk 0:00:01]} 38. Rc7 {[%clk 0:00:25]}  Qxa5 {[%clk 0:00:02]} 39. Qf6 {[%clk 0:00:18]}  Qb4 {[%clk 0:00:02]} 40. h3 {[%clk 0:00:15]}  Qa3 {[%clk 0:00:02]} 41. R1c3 {[%clk 0:00:13]}  Qd6 {[%clk 0:00:02]} 42. R3c6 {[%clk 0:00:10]}  Qa3 {[%clk 0:00:02]} 43. Rc3 {[%clk 0:00:10]}  Qd6 {[%clk 0:00:02]} 44. R3c6 {[%clk 0:00:10]}  Qa3 {[%clk 0:00:01]} 45. Rb6 {[%clk 0:00:07]}  Qc1+ {[%clk 0:00:01]} 46. Rxc1 {[%clk 0:00:06]} 1-0


[Site "https://www.chess.com"]

[Event "Titled Tuesday Blitz January 10 Early 2023"]
[White "Musovic, Armin"]
[Black "Guevara Sanchez, Erick Marvin"]
[WhiteFideId "939935"]
[BlackFideId "6700136"]
[WhiteElo "2261"]
[BlackElo "2073"]
[Result "1-0"]
[Round "03"]
[TimeControl "180+2"]
[Date "2023.01.10"]
[WhiteClock "0:00:30"]
[BlackClock "0:00:04"]

1. e4 {[%clk 0:03:00]}  c5 {[%clk 0:03:00]} 2. c3 {[%clk 0:02:59]}  e6 {[%clk 0:02:59]} 3. d4 {[%clk 0:02:59]}  d5 {[%clk 0:02:59]} 4. e5 {[%clk 0:02:59]}  Nc6 {[%clk 0:02:58]} 5. Nf3 {[%clk 0:02:59]}  Qb6 {[%clk 0:02:58]} 6. a3 {[%clk 0:02:56]}  Nh6 {[%clk 0:02:50]} 7. Bd3 {[%clk 0:02:48]}  Bd7 {[%clk 0:02:40]} 8. dxc5 {[%clk 0:02:47]}  Bxc5 {[%clk 0:02:38]} 9. O-O {[%clk 0:02:47]}  Ng4 {[%clk 0:02:28]} 10. b4 {[%clk 0:02:42]}  Bxf2+ {[%clk 0:02:20]} 11. Kh1 {[%clk 0:02:40]}  Ngxe5 {[%clk 0:02:18]} 12. Bc2 {[%clk 0:02:30]}  Be3 {[%clk 0:02:13]} 13. Nbd2 {[%clk 0:02:28]}  Ng4 {[%clk 0:01:50]} 14. Nb3 {[%clk 0:02:12]}  Bxc1 {[%clk 0:01:43]} 15. Rxc1 {[%clk 0:02:08]}  Nf2+ {[%clk 0:01:42]} 16. Rxf2 {[%clk 0:02:09]}  Qxf2 {[%clk 0:01:43]} 17. Nc5 {[%clk 0:02:08]}  Qe3 {[%clk 0:01:34]} 18. Nxd7 {[%clk 0:01:59]}  Kxd7 {[%clk 0:01:33]} 19. Qf1 {[%clk 0:02:00]}  a6 {[%clk 0:01:29]} 20. c4 {[%clk 0:01:58]}  d4 {[%clk 0:01:22]} 21. Re1 {[%clk 0:01:53]}  Qc3 {[%clk 0:01:12]} 22. Be4 {[%clk 0:01:53]}  Kc7 {[%clk 0:01:04]} 23. b5 {[%clk 0:01:48]}  Ne7 {[%clk 0:00:55]} 24. Rc1 {[%clk 0:01:32]}  Qxa3 {[%clk 0:00:51]} 25. Nxd4 {[%clk 0:01:24]}  Qc5 {[%clk 0:00:46]} 26. b6+ {[%clk 0:01:13]}  Kb8 {[%clk 0:00:28]} 27. Qxf7 {[%clk 0:00:47]}  Nf5 {[%clk 0:00:11]} 28. Nxe6 {[%clk 0:00:40]}  Nd6 {[%clk 0:00:09]} 29. Qxg7 {[%clk 0:00:32]}  Re8 {[%clk 0:00:07]} 30. Nxc5 {[%clk 0:00:31]}  Nxe4 {[%clk 0:00:04]} 31. Qxb7# {[%clk 0:00:30]} 1-0


[Site "https://www.chess.com"]

[Event "Titled Tuesday Blitz January 10 Early 2023"]
[White "Kho, Darrell"]
[Black "Bagrationi, Alexander"]
[WhiteFideId "1019317"]
[BlackFideId "14104954"]
[WhiteElo "2075"]
[BlackElo "2454"]
[Result "0-1"]
[Round "03"]
[TimeControl "180+2"]
[Date "2023.01.10"]
[WhiteClock "0:00:02"]
[BlackClock "0:00:09"]

1. e4 {[%clk 0:02:57]}  c5 {[%clk 0:02:33]} 2. Nf3 {[%clk 0:02:56]}  Nc6 {[%clk 0:02:33]} 3. Bb5 {[%clk 0:02:56]}  Qb6 {[%clk 0:02:31]} 4. Nc3 {[%clk 0:02:41]}  e6 {[%clk 0:02:31]} 5. O-O {[%clk 0:02:37]}  a6 {[%clk 0:01:40]} 6. Bxc6 {[%clk 0:02:36]}  Qxc6 {[%clk 0:01:32]} 7. d4 {[%clk 0:02:35]}  cxd4 {[%clk 0:01:13]} 8. Nxd4 {[%clk 0:02:36]}  Qc7 {[%clk 0:01:13]} 9. a4 {[%clk 0:02:11]}  d6 {[%clk 0:00:49]} 10. Be3 {[%clk 0:01:32]}  Nf6 {[%clk 0:00:47]} 11. a5 {[%clk 0:01:22]}  Be7 {[%clk 0:00:47]} 12. Re1 {[%clk 0:01:16]}  O-O {[%clk 0:00:45]} 13. f3 {[%clk 0:01:15]}  Bd7 {[%clk 0:00:45]} 14. Nb3 {[%clk 0:01:07]}  Rfc8 {[%clk 0:00:40]} 15. Re2 {[%clk 0:01:03]}  Bc6 {[%clk 0:00:36]} 16. Na4 {[%clk 0:00:58]}  Nd7 {[%clk 0:00:34]} 17. Bb6 {[%clk 0:00:52]}  Qb8 {[%clk 0:00:31]} 18. Bd4 {[%clk 0:00:39]}  Bxa4 {[%clk 0:00:25]} 19. Rxa4 {[%clk 0:00:39]}  Rc6 {[%clk 0:00:19]} 20. Qe1 {[%clk 0:00:36]}  b5 {[%clk 0:00:17]} 21. axb6 {[%clk 0:00:33]}  Nxb6 {[%clk 0:00:17]} 22. Ra5 {[%clk 0:00:17]}  Nc4 {[%clk 0:00:16]} 23. Rh5 {[%clk 0:00:12]}  e5 {[%clk 0:00:15]} 24. Bc3 {[%clk 0:00:07]}  Qb6+ {[%clk 0:00:14]} 25. Kh1 {[%clk 0:00:03]}  g6 {[%clk 0:00:14]} 26. Rh3 {[%clk 0:00:02]}  a5 {[%clk 0:00:13]} 27. Qg3 {[%clk 0:00:02]}  a4 {[%clk 0:00:10]} 28. Nd2 {[%clk 0:00:02]}  Nxb2 {[%clk 0:00:09]} 29. Bxb2 {[%clk 0:00:02]}  Qxb2 {[%clk 0:00:10]} 30. Nf1 {[%clk 0:00:02]}  a3 {[%clk 0:00:09]} 0-1


[Site "https://www.chess.com"]

[Event "Titled Tuesday Blitz January 10 Early 2023"]
[White "Makarian, Rudik"]
[Black "Topalov, Aleksandar"]
[WhiteFideId "44105681"]
[BlackFideId "925659"]
[WhiteElo "2545"]
[BlackElo "2233"]
[Result "1-0"]
[Round "03"]
[TimeControl "180+2"]
[Date "2023.01.10"]
[WhiteClock "0:01:54"]
[BlackClock "0:00:01"]

1. d4 {[%clk 0:03:00]}  Nf6 {[%clk 0:02:59]} 2. c4 {[%clk 0:03:01]}  c5 {[%clk 0:02:57]} 3. dxc5 {[%clk 0:03:00]}  e6 {[%clk 0:02:55]} 4. g3 {[%clk 0:03:01]}  Bxc5 {[%clk 0:02:54]} 5. Bg2 {[%clk 0:03:01]}  O-O {[%clk 0:02:52]} 6. Nf3 {[%clk 0:03:02]}  d5 {[%clk 0:02:41]} 7. O-O {[%clk 0:03:03]}  Nc6 {[%clk 0:02:40]} 8. cxd5 {[%clk 0:03:03]}  exd5 {[%clk 0:02:38]} 9. b3 {[%clk 0:02:59]}  Ne4 {[%clk 0:02:35]} 10. Bb2 {[%clk 0:02:58]}  Be6 {[%clk 0:02:09]} 11. Nc3 {[%clk 0:02:57]}  Rc8 {[%clk 0:01:59]} 12. Rc1 {[%clk 0:02:57]}  Bb6 {[%clk 0:01:54]} 13. e3 {[%clk 0:02:56]}  Re8 {[%clk 0:01:47]} 14. Ne2 {[%clk 0:02:54]}  Qd7 {[%clk 0:01:32]} 15. Nf4 {[%clk 0:02:50]}  Nb4 {[%clk 0:01:24]} 16. a3 {[%clk 0:02:46]}  Na2 {[%clk 0:01:15]} 17. Rc2 {[%clk 0:02:46]}  Nac3 {[%clk 0:01:08]} 18. Qa1 {[%clk 0:02:42]}  d4 {[%clk 0:00:38]} 19. Nxe6 {[%clk 0:02:39]}  Rxe6 {[%clk 0:00:36]} 20. Nxd4 {[%clk 0:02:39]}  Bxd4 {[%clk 0:00:36]} 21. exd4 {[%clk 0:02:40]}  Nd5 {[%clk 0:00:35]} 22. Rxc8+ {[%clk 0:02:36]}  Qxc8 {[%clk 0:00:35]} 23. Qc1 {[%clk 0:02:34]}  Qd7 {[%clk 0:00:34]} 24. Re1 {[%clk 0:02:33]}  Nef6 {[%clk 0:00:33]} 25. Re5 {[%clk 0:02:32]}  h6 {[%clk 0:00:31]} 26. h4 {[%clk 0:02:31]}  Rc6 {[%clk 0:00:17]} 27. Qd2 {[%clk 0:02:19]}  b6 {[%clk 0:00:13]} 28. Bf3 {[%clk 0:02:17]}  Qd6 {[%clk 0:00:10]} 29. Kg2 {[%clk 0:02:17]}  Qd7 {[%clk 0:00:10]} 30. a4 {[%clk 0:02:11]}  a5 {[%clk 0:00:09]} 31. Qe2 {[%clk 0:02:08]}  Re6 {[%clk 0:00:08]} 32. Ba3 {[%clk 0:02:05]}  Qe8 {[%clk 0:00:06]} 33. Rxe6 {[%clk 0:01:57]}  fxe6 {[%clk 0:00:05]} 34. Bd6 {[%clk 0:01:56]}  Qd7 {[%clk 0:00:04]} 35. Be5 {[%clk 0:01:57]}  Ne8 {[%clk 0:00:01]} 36. Qc2 {[%clk 0:01:54]} 1-0


[Site "https://www.chess.com"]

[Event "Titled Tuesday Blitz January 10 Early 2023"]
[White "Tan, Zhongyi"]
[Black "Gressmann, Moritz"]
[WhiteFideId "8603642"]
[BlackFideId "24695084"]
[WhiteElo "2517"]
[BlackElo "2129"]
[Result "1-0"]
[Round "03"]
[TimeControl "180+2"]
[Date "2023.01.10"]
[WhiteClock "0:00:08"]
[BlackClock "0:00:05"]

1. e4 {[%clk 0:03:00]}  e5 {[%clk 0:02:59]} 2. Nf3 {[%clk 0:02:59]}  Nc6 {[%clk 0:02:58]} 3. Bc4 {[%clk 0:02:59]}  Nf6 {[%clk 0:02:57]} 4. Ng5 {[%clk 0:02:56]}  d5 {[%clk 0:02:57]} 5. exd5 {[%clk 0:02:55]}  Na5 {[%clk 0:02:57]} 6. Bb5+ {[%clk 0:02:55]}  c6 {[%clk 0:02:58]} 7. dxc6 {[%clk 0:02:55]}  bxc6 {[%clk 0:02:59]} 8. Bd3 {[%clk 0:02:56]}  h6 {[%clk 0:02:57]} 9. Ne4 {[%clk 0:02:53]}  Nd5 {[%clk 0:02:57]} 10. O-O {[%clk 0:02:51]}  Nf4 {[%clk 0:02:52]} 11. Be2 {[%clk 0:02:42]}  Be7 {[%clk 0:02:45]} 12. d3 {[%clk 0:02:42]}  Nxe2+ {[%clk 0:02:31]} 13. Qxe2 {[%clk 0:02:41]}  O-O {[%clk 0:02:32]} 14. Nbc3 {[%clk 0:02:39]}  Nb7 {[%clk 0:02:28]} 15. Ng3 {[%clk 0:02:33]}  Bd6 {[%clk 0:02:22]} 16. Qh5 {[%clk 0:02:13]}  f5 {[%clk 0:01:50]} 17. Kh1 {[%clk 0:01:45]}  Qf6 {[%clk 0:01:41]} 18. f4 {[%clk 0:01:44]}  exf4 {[%clk 0:01:22]} 19. Bxf4 {[%clk 0:01:44]}  Be6 {[%clk 0:01:16]} 20. Bxd6 {[%clk 0:01:24]}  Nxd6 {[%clk 0:01:15]} 21. Rae1 {[%clk 0:01:24]}  c5 {[%clk 0:00:50]} 22. Nge4 {[%clk 0:01:11]}  Nxe4 {[%clk 0:00:42]} 23. dxe4 {[%clk 0:01:11]}  f4 {[%clk 0:00:34]} 24. Qxc5 {[%clk 0:01:10]}  Bg4 {[%clk 0:00:26]} 25. e5 {[%clk 0:01:02]}  Qf5 {[%clk 0:00:24]} 26. Nd5 {[%clk 0:00:58]}  Rae8 {[%clk 0:00:19]} 27. Nxf4 {[%clk 0:00:30]}  g5 {[%clk 0:00:12]} 28. Qc4+ {[%clk 0:00:30]}  Kh7 {[%clk 0:00:09]} 29. Nh3 {[%clk 0:00:17]}  Rxe5 {[%clk 0:00:08]} 30. Ng1 {[%clk 0:00:06]}  Rxe1 {[%clk 0:00:06]} 31. Rxe1 {[%clk 0:00:06]}  Rf7 {[%clk 0:00:06]} 32. Qd3 {[%clk 0:00:06]}  Qxd3 {[%clk 0:00:06]} 33. cxd3 {[%clk 0:00:06]}  Bf5 {[%clk 0:00:06]} 34. Rd1 {[%clk 0:00:06]}  Rd7 {[%clk 0:00:05]} 35. d4 {[%clk 0:00:06]}  Be4 {[%clk 0:00:04]} 36. h3 {[%clk 0:00:06]}  Rc7 {[%clk 0:00:04]} 37. Rd2 {[%clk 0:00:06]}  Bd5 {[%clk 0:00:03]} 38. b3 {[%clk 0:00:06]}  a5 {[%clk 0:00:04]} 39. Kh2 {[%clk 0:00:07]}  a4 {[%clk 0:00:04]} 40. bxa4 {[%clk 0:00:07]}  Ra7 {[%clk 0:00:04]} 41. Ne2 {[%clk 0:00:08]}  Rxa4 {[%clk 0:00:05]} 42. Nc3 {[%clk 0:00:08]}  Ra5 {[%clk 0:00:05]} 43. Nxd5 {[%clk 0:00:08]}  Rxd5 {[%clk 0:00:06]} 44. Kg3 {[%clk 0:00:09]}  Kg6 {[%clk 0:00:06]} 45. Kf3 {[%clk 0:00:09]}  Kf5 {[%clk 0:00:07]} 46. g4+ {[%clk 0:00:09]}  Ke6 {[%clk 0:00:06]} 47. Ke4 {[%clk 0:00:10]}  Ra5 {[%clk 0:00:07]} 48. Rb2 {[%clk 0:00:10]}  Ra3 {[%clk 0:00:07]} 49. Rb6+ {[%clk 0:00:10]}  Kd7 {[%clk 0:00:07]} 50. Rxh6 {[%clk 0:00:10]}  Rxa2 {[%clk 0:00:06]} 51. Ke5 {[%clk 0:00:10]}  Re2+ {[%clk 0:00:05]} 52. Kd5 {[%clk 0:00:10]}  Ke7 {[%clk 0:00:04]} 53. Rh7+ {[%clk 0:00:09]}  Kf6 {[%clk 0:00:05]} 54. Kd6 {[%clk 0:00:10]}  Rd2 {[%clk 0:00:04]} 55. d5 {[%clk 0:00:10]}  Rd4 {[%clk 0:00:04]} 56. Kc5 {[%clk 0:00:09]}  Rd1 {[%clk 0:00:04]} 57. d6 {[%clk 0:00:10]}  Ke6 {[%clk 0:00:04]} 58. Re7+ {[%clk 0:00:09]}  Kf6 {[%clk 0:00:04]} 59. Kc6 {[%clk 0:00:10]}  Rc1+ {[%clk 0:00:04]} 60. Kd7 {[%clk 0:00:10]}  Rd1 {[%clk 0:00:05]} 61. Rh7 {[%clk 0:00:10]}  Rd2 {[%clk 0:00:05]} 62. Kc7 {[%clk 0:00:09]}  Rc2+ {[%clk 0:00:05]} 63. Kd8 {[%clk 0:00:09]}  Ke6 {[%clk 0:00:06]} 64. d7 {[%clk 0:00:09]}  Ra2 {[%clk 0:00:05]} 65. Rh6+ {[%clk 0:00:10]}  Kf7 {[%clk 0:00:05]} 66. Kc7 {[%clk 0:00:09]}  Rc2+ {[%clk 0:00:05]} 67. Rc6 {[%clk 0:00:08]} 1-0


[Site "https://www.chess.com"]

[Event "Titled Tuesday Blitz January 10 Early 2023"]
[White "Mrudul Dehankar"]
[Black "Novik, Maxim"]
[WhiteFideId "25096990"]
[BlackFideId "4102924"]
[WhiteElo "2030"]
[BlackElo "2436"]
[Result "0-1"]
[Round "03"]
[TimeControl "180+2"]
[Date "2023.01.10"]
[WhiteClock "0:00:02"]
[BlackClock "0:00:10"]

1. e4 {[%clk 0:02:56]}  c5 {[%clk 0:02:59]} 2. Nf3 {[%clk 0:02:56]}  e6 {[%clk 0:02:59]} 3. d4 {[%clk 0:02:56]}  cxd4 {[%clk 0:02:59]} 4. Nxd4 {[%clk 0:02:56]}  a6 {[%clk 0:02:59]} 5. Bd3 {[%clk 0:02:55]}  Bc5 {[%clk 0:02:58]} 6. Nb3 {[%clk 0:02:55]}  Ba7 {[%clk 0:02:58]} 7. Qg4 {[%clk 0:02:55]}  Nf6 {[%clk 0:02:56]} 8. Qg3 {[%clk 0:02:43]}  Nc6 {[%clk 0:02:54]} 9. O-O {[%clk 0:02:41]}  h5 {[%clk 0:02:03]} 10. Nc3 {[%clk 0:01:58]}  Bb8 {[%clk 0:01:41]} 11. Qxg7 {[%clk 0:00:48]}  Rg8 {[%clk 0:01:40]} 12. Qh6 {[%clk 0:00:45]}  Bxh2+ {[%clk 0:01:36]} 13. Kh1 {[%clk 0:00:42]}  Be5 {[%clk 0:01:36]} 14. Bg5 {[%clk 0:00:23]}  Ng4 {[%clk 0:01:35]} 15. Bxd8 {[%clk 0:00:19]}  Nxh6 {[%clk 0:01:35]} 16. Bb6 {[%clk 0:00:19]}  d6 {[%clk 0:01:28]} 17. Be2 {[%clk 0:00:14]}  h4 {[%clk 0:01:19]} 18. Rad1 {[%clk 0:00:13]}  Ke7 {[%clk 0:01:15]} 19. f4 {[%clk 0:00:11]}  Bxc3 {[%clk 0:01:14]} 20. bxc3 {[%clk 0:00:11]}  f5 {[%clk 0:01:12]} 21. e5 {[%clk 0:00:11]}  dxe5 {[%clk 0:01:11]} 22. Bc5+ {[%clk 0:00:11]}  Kf7 {[%clk 0:01:11]} 23. Bh5+ {[%clk 0:00:10]}  Kg7 {[%clk 0:01:05]} 24. fxe5 {[%clk 0:00:10]}  Kh7 {[%clk 0:01:02]} 25. Rde1 {[%clk 0:00:08]}  Bd7 {[%clk 0:01:00]} 26. Nd4 {[%clk 0:00:08]}  Ng4 {[%clk 0:00:55]} 27. Nf3 {[%clk 0:00:07]}  Kh6 {[%clk 0:00:53]} 28. Bxg4 {[%clk 0:00:06]}  Rxg4 {[%clk 0:00:53]} 29. Be3+ {[%clk 0:00:05]}  Kh5 {[%clk 0:00:52]} 30. Rd1 {[%clk 0:00:05]}  Be8 {[%clk 0:00:47]} 31. Rd6 {[%clk 0:00:05]}  Bf7 {[%clk 0:00:39]} 32. Rd7 {[%clk 0:00:05]}  Rag8 {[%clk 0:00:26]} 33. Rxf7 {[%clk 0:00:03]}  R4g7 {[%clk 0:00:23]} 34. Rxg7 {[%clk 0:00:03]}  Rxg7 {[%clk 0:00:24]} 35. Bf2 {[%clk 0:00:04]}  Kg4 {[%clk 0:00:20]} 36. Rd1 {[%clk 0:00:04]}  h3 {[%clk 0:00:19]} 37. Nh2+ {[%clk 0:00:03]}  Kf4 {[%clk 0:00:18]} 38. gxh3 {[%clk 0:00:03]}  Nxe5 {[%clk 0:00:16]} 39. Re1 {[%clk 0:00:04]}  Nc4 {[%clk 0:00:12]} 40. Be3+ {[%clk 0:00:04]}  Nxe3 {[%clk 0:00:12]} 41. Re2 {[%clk 0:00:02]}  e5 {[%clk 0:00:11]} 42. Rf2+ {[%clk 0:00:03]}  Ke4 {[%clk 0:00:12]} 43. Nf3 {[%clk 0:00:03]}  f4 {[%clk 0:00:12]} 44. Nd2+ {[%clk 0:00:04]}  Kf5 {[%clk 0:00:12]} 45. c4 {[%clk 0:00:04]}  Rd7 {[%clk 0:00:12]} 46. Kh2 {[%clk 0:00:04]}  Rc7 {[%clk 0:00:10]} 47. Nf3 {[%clk 0:00:05]}  b5 {[%clk 0:00:10]} 48. Nh4+ {[%clk 0:00:06]}  Ke4 {[%clk 0:00:09]} 49. cxb5 {[%clk 0:00:06]}  axb5 {[%clk 0:00:10]} 50. Nf3 {[%clk 0:00:05]}  Rxc2 {[%clk 0:00:10]} 51. Rxc2 {[%clk 0:00:05]}  Nxc2 {[%clk 0:00:10]} 52. Ng5+ {[%clk 0:00:04]}  Kf5 {[%clk 0:00:10]} 53. h4 {[%clk 0:00:05]}  e4 {[%clk 0:00:10]} 54. Nh3 {[%clk 0:00:04]}  e3 {[%clk 0:00:10]} 55. Kg2 {[%clk 0:00:02]}  e2 {[%clk 0:00:10]} 0-1


[Site "https://www.chess.com"]

[Event "Titled Tuesday Blitz January 10 Early 2023"]
[White "Baches Garcia, Guillermo"]
[Black "Prudnykova, Olga"]
[WhiteFideId "2209764"]
[BlackFideId "14121093"]
[WhiteElo "2327"]
[BlackElo "2268"]
[Result "1-0"]
[Round "03"]
[TimeControl "180+2"]
[Date "2023.01.10"]
[WhiteClock "0:00:18"]
[BlackClock "0:00:07"]

1. e4 {[%clk 0:03:00]}  c5 {[%clk 0:02:59]} 2. Nf3 {[%clk 0:03:01]}  Nf6 {[%clk 0:02:59]} 3. d3 {[%clk 0:02:57]}  d5 {[%clk 0:02:57]} 4. Nbd2 {[%clk 0:02:57]}  Nc6 {[%clk 0:02:56]} 5. g3 {[%clk 0:02:56]}  e6 {[%clk 0:02:56]} 6. Bg2 {[%clk 0:02:56]}  Be7 {[%clk 0:02:56]} 7. O-O {[%clk 0:02:56]}  b6 {[%clk 0:02:56]} 8. Re1 {[%clk 0:02:50]}  Bb7 {[%clk 0:02:56]} 9. h4 {[%clk 0:02:45]}  Qc7 {[%clk 0:02:54]} 10. c3 {[%clk 0:02:42]}  h6 {[%clk 0:02:54]} 11. Qe2 {[%clk 0:02:42]}  O-O-O {[%clk 0:02:39]} 12. a4 {[%clk 0:02:36]}  Rdg8 {[%clk 0:02:21]} 13. Nf1 {[%clk 0:02:19]}  dxe4 {[%clk 0:02:16]} 14. dxe4 {[%clk 0:02:17]}  g5 {[%clk 0:02:07]} 15. hxg5 {[%clk 0:02:10]}  hxg5 {[%clk 0:02:06]} 16. Bxg5 {[%clk 0:02:09]}  Ng4 {[%clk 0:02:01]} 17. Bf4 {[%clk 0:01:56]}  e5 {[%clk 0:01:56]} 18. Bd2 {[%clk 0:01:51]}  f6 {[%clk 0:01:41]} 19. b4 {[%clk 0:01:38]}  Nd8 {[%clk 0:01:22]} 20. a5 {[%clk 0:01:26]}  Ne6 {[%clk 0:01:16]} 21. axb6 {[%clk 0:01:25]}  axb6 {[%clk 0:01:16]} 22. Ra7 {[%clk 0:01:20]}  Kb8 {[%clk 0:01:12]} 23. Rea1 {[%clk 0:01:15]}  Bd8 {[%clk 0:01:04]} 24. Ne3 {[%clk 0:01:03]}  Nxe3 {[%clk 0:00:49]} 25. Bxe3 {[%clk 0:01:00]}  c4 {[%clk 0:00:43]} 26. Qa2 {[%clk 0:00:51]}  Qc6 {[%clk 0:00:38]} 27. b5 {[%clk 0:00:40]}  Qxe4 {[%clk 0:00:27]} 28. Rxb7+ {[%clk 0:00:39]}  Qxb7 {[%clk 0:00:22]} 29. Nxe5 {[%clk 0:00:31]}  Qh7 {[%clk 0:00:10]} 30. Qa8+ {[%clk 0:00:24]}  Kc7 {[%clk 0:00:10]} 31. Ra7+ {[%clk 0:00:24]}  Kd6 {[%clk 0:00:10]} 32. Qc6+ {[%clk 0:00:24]}  Kxe5 {[%clk 0:00:11]} 33. f4+ {[%clk 0:00:21]}  Kf5 {[%clk 0:00:11]} 34. Be4+ {[%clk 0:00:20]}  Kg4 {[%clk 0:00:11]} 35. Rxh7 {[%clk 0:00:20]}  Rxh7 {[%clk 0:00:09]} 36. Bxh7 {[%clk 0:00:20]}  Rh8 {[%clk 0:00:07]} 37. Qe4 {[%clk 0:00:18]} 1-0


[Site "https://www.chess.com"]

[Event "Titled Tuesday Blitz January 10 Early 2023"]
[White "Ronka, Erik"]
[Black "Makhmudov, Shukhrat"]
[WhiteFideId "505080"]
[BlackFideId "14200775"]
[WhiteElo "2276"]
[BlackElo "2115"]
[Result "1-0"]
[Round "03"]
[TimeControl "180+2"]
[Date "2023.01.10"]
[WhiteClock "0:00:46"]
[BlackClock "0:00:53"]

1. d4 {[%clk 0:03:00]}  Nf6 {[%clk 0:02:55]} 2. Nc3 {[%clk 0:03:00]}  d5 {[%clk 0:02:54]} 3. Bf4 {[%clk 0:03:01]}  c6 {[%clk 0:02:53]} 4. f3 {[%clk 0:02:58]}  g6 {[%clk 0:02:43]} 5. e4 {[%clk 0:02:57]}  dxe4 {[%clk 0:02:40]} 6. fxe4 {[%clk 0:02:57]}  Bg7 {[%clk 0:02:40]} 7. Qd2 {[%clk 0:02:57]}  b5 {[%clk 0:02:30]} 8. a3 {[%clk 0:02:36]}  a5 {[%clk 0:02:29]} 9. Nf3 {[%clk 0:02:35]}  Bg4 {[%clk 0:02:18]} 10. Be2 {[%clk 0:02:28]}  Na6 {[%clk 0:02:10]} 11. h3 {[%clk 0:02:19]}  Bxf3 {[%clk 0:02:05]} 12. Bxf3 {[%clk 0:02:20]}  Nh5 {[%clk 0:01:53]} 13. Be3 {[%clk 0:01:51]}  Ng3 {[%clk 0:01:38]} 14. Rg1 {[%clk 0:01:50]}  b4 {[%clk 0:01:32]} 15. Na4 {[%clk 0:01:47]}  f5 {[%clk 0:01:18]} 16. exf5 {[%clk 0:01:37]}  Nxf5 {[%clk 0:01:12]} 17. Bxc6+ {[%clk 0:01:37]}  Kf8 {[%clk 0:01:13]} 18. Bxa8 {[%clk 0:01:35]}  Qxa8 {[%clk 0:01:12]} 19. g4 {[%clk 0:01:18]}  Nh4 {[%clk 0:01:06]} 20. O-O-O {[%clk 0:01:07]}  bxa3 {[%clk 0:01:02]} 21. bxa3 {[%clk 0:01:05]}  Qd5 {[%clk 0:00:59]} 22. Nc3 {[%clk 0:00:58]}  Qd6 {[%clk 0:00:59]} 23. Qf2+ {[%clk 0:00:57]}  Ke8 {[%clk 0:00:58]} 24. Qxh4 {[%clk 0:00:52]}  Qxa3+ {[%clk 0:00:57]} 25. Kd2 {[%clk 0:00:52]}  Rf8 {[%clk 0:00:54]} 26. Rgf1 {[%clk 0:00:48]}  Qd6 {[%clk 0:00:53]} 27. Rxf8+ {[%clk 0:00:46]} 1-0


[Site "https://www.chess.com"]